bitfinex/quotes_SOLUSD_20241005
["timestamp","ask_amount","ask_price","bid_price","bid_amount"]
[1728137157885,0.8563334,143.53,143.52,50.0]
[1728137158278,0.8563334,143.53,143.51,56.9681]
[1728137160389,0.8563334,143.53,143.51,50.0]
[1728137160594,2.59817553,143.53,143.5,74.3897]
[1728137160774,0.8563334,143.53,143.5,74.3897]
[1728137161179,2.59820905,143.53,143.5,50.0]
[1728137161488,0.8563334,143.53,143.46,32.863]
[1728137161688,9.56558847,143.53,143.48,56.9692]
[1728137163666,9.56558847,143.53,143.48,6.9692]
[1728137163890,9.56558847,143.53,143.48,56.9692]
[1728137168381,6.9687,143.5,143.45,56.9709]
[1728137168589,8.71184211,143.49,143.45,50.0]
[1728137168774,1.74250729,143.48,143.45,50.0]
[1728137169299,1.74250729,143.48,143.44,56.9713]
[1728137169487,6.9694,143.49,143.44,56.9713]
[1728137169691,1.74252921,143.48,143.44,56.9713]
[1728137169881,6.9692,143.49,143.45,6.9709]
[1728137170276,6.9692,143.49,143.45,56.9709]
[1728137170495,6.9692,143.49,143.45,56.4709]
[1728137171388,8.71205817,143.48,143.43,74.4012]
[1728137171599,6.9696,143.48,143.43,67.4296]
[1728137172492,6.9696,143.48,143.44,50.0]
[1728137173089,6.9696,143.48,143.44,56.9714]
[1728137174299,6.9706,143.46,143.44,50.0]
[1728137174595,6.9702,143.47,143.43,50.0]
[1728137178914,1.74266274,143.48,143.42,56.9724]
[1728137179117,6.9706,143.46,143.42,50.0]
[1728137179288,8.713433,143.46,143.42,50.0]
[1728137179487,6.9706,143.46,143.42,56.9725]
[1728137182414,1.74283169,143.45,143.42,50.0]
[1728137183100,1.74283169,143.45,143.41,56.9728]
[1728137183615,6.9706,143.46,143.41,56.9728]
[1728137184307,1.74290204,143.45,143.41,56.9728]
[1728137186501,1.74290204,143.45,143.41,50.0]
[1728137186704,6.9735,143.4,143.36,50.0]
[1728137187637,6.973,143.41,143.36,56.9752]
[1728137188435,1.74352528,143.4,143.36,56.9752]
[1728137189238,6.9758,143.36,143.34,50.0]
[1728137189541,6.975,143.37,143.33,50.0]
[1728137189718,1.743854,143.39,143.33,56.9768]
[1728137190041,6.9745,143.38,143.33,56.9768]
[1728137190330,1.743854,143.39,143.33,56.9768]
[1728137190331,1.743854,143.39,143.33,50.0]
[1728137190554,8.717954,143.39,143.35,50.0]
[1728137190741,1.743854,143.39,143.35,56.9758]
[1728137194628,1.743854,143.39,143.33,30.58902772]
[1728137194629,1.743854,143.39,143.33,74.4182]
[1728137194819,6.9748,143.38,143.33,67.4414]
[1728137195138,6.9748,143.38,143.34,56.9763]
[1728137196247,23.015,143.4,143.35,56.9758]
[1728137197114,1.74365652,143.39,143.35,6.9758]
[1728137197321,1.74365652,143.39,143.35,56.9758]
[1728137198745,8.71765652,143.39,143.35,56.9758]
[1728137200031,8.71765652,143.39,143.35,50.0]
[1728137200232,8.71765652,143.39,143.34,6.9763]
[1728137200538,8.71765652,143.39,143.34,56.9763]
[1728137200739,1.74365652,143.39,143.34,50.0]
[1728137200911,6.9745,143.38,143.34,50.0]
[1728137202056,6.9753,143.37,143.34,50.0]
[1728137202347,8.71827707,143.38,143.34,50.0]
[1728137203644,8.71827707,143.38,143.33,74.4181]
[1728137203953,6.9749,143.37,143.33,74.4181]
[1728137204452,1.74393774,143.39,143.33,74.4181]
[1728137204746,8.71793774,143.39,143.34,56.9762]
[1728137204950,6.974,143.39,143.35,6.9758]
[1728137205840,6.974,143.39,143.35,56.9758]
[1728137207352,1.74366558,143.38,143.35,50.0]
[1728137207937,8.7177294,143.39,143.35,50.0]
[1728137208155,6.974,143.39,143.35,50.0]
[1728137209030,6.974,143.39,143.34,56.9762]
[1728137210524,1.74369568,143.38,143.34,56.9762]
[1728137210853,8.71819568,143.38,143.34,56.9762]
[1728137211038,8.71819568,143.38,143.34,6.9762]
[1728137212233,8.71819568,143.38,143.34,56.9762]
[1728137213030,8.71819568,143.38,143.33,17.4414]
[1728137213031,6.975,143.37,143.33,17.4414]
[1728137213230,6.975,143.37,143.33,67.4414]
[1728137213559,6.975,143.37,143.33,74.4182]
[1728137215253,6.975,143.37,143.33,67.4414]
[1728137217262,6.975,143.37,143.33,74.4182]
[1728137222859,1.74389939,143.36,143.33,17.4414]
[1728137223044,6.9769,143.33,143.32,50.0]
[1728137223247,6.9759,143.35,143.32,50.0]
[1728137223854,6.9759,143.35,143.31,50.0]
[1728137224148,1.74416803,143.34,143.31,50.0]
[1728137224354,1.74416803,143.34,143.3,6.9781]
[1728137225463,6.9759,143.35,143.3,6.9781]
[1728137227581,6.9759,143.35,143.31,50.0]
[1728137228266,8.71970029,143.36,143.31,56.9777]
[1728137228469,8.71970029,143.36,143.31,50.0]
[1728137228655,8.71970029,143.36,143.32,6.9773]
[1728137228967,13.6067,143.37,143.32,6.9773]
[1728137229168,8.71942353,143.36,143.32,6.9773]
[1728137229366,8.71942353,143.36,143.32,50.0]
[1728137230283,1.74402353,143.36,143.32,50.0]
[1728137230574,6.976,143.35,143.31,56.9775]
[1728137233475,6.976,143.35,143.31,6.9775]
[1728137233676,6.976,143.35,143.31,50.0]
[1728137235478,6.6317,143.37,143.31,50.0]
[1728137235686,6.9755,143.36,143.32,56.9773]
[1728137236186,8.71948044,143.36,143.32,56.9773]
[1728137237756,8.71948044,143.36,143.32,50.0]
[1728137239475,6.9755,143.36,143.32,50.0]
[1728137240055,6.9755,143.36,143.33,50.0]
[1728137240252,6.6317,143.37,143.33,56.9768]
[1728137240456,6.9745,143.38,143.33,50.0]
[1728137240758,6.9745,143.38,143.34,6.9763]
[1728137240964,6.9745,143.38,143.34,56.9763]
[1728137241464,6.9745,143.38,143.34,50.0]
[1728137253779,6.9745,143.38,143.33,56.9768]
[1728137257773,1.74398406,143.39,143.33,56.9768]
[1728137257970,6.9749,143.37,143.33,50.0]
[1728137258174,6.9749,143.37,143.32,74.4196]
[1728137259165,6.9749,143.37,143.32,24.4196]
[1728137259490,6.9756,143.36,143.32,24.4196]
[1728137260279,6.9756,143.36,143.32,74.4196]
[1728137262473,6.9756,143.36,143.32,67.4423]
[1728137262670,8.7199275,143.35,143.32,50.0]
[1728137263592,8.7199275,143.35,143.31,50.0]
[1728137270705,17.4967275,143.35,143.29,74.4251]
[1728137270902,17.4967275,143.35,143.29,67.4464]
[1728137271118,17.4967275,143.35,143.29,17.4464]
[1728137271778,17.4967275,143.35,143.28,56.9793]
[1728137271985,6.9778,143.32,143.27,56.9798]
[1728137272186,8.72231818,143.32,143.27,56.9798]
[1728137274300,1.74451818,143.32,143.27,50.0]
[1728137274513,15.15706045,143.33,143.28,17.4477]
[1728137274695,15.15706045,143.33,143.28,24.4269]
[1728137275004,6.9775,143.32,143.28,24.4269]
[1728137275396,6.9775,143.32,143.28,74.4269]
[1728137277296,6.9775,143.32,143.28,67.4477]
[1728137277478,6.9775,143.32,143.28,17.4477]
[1728137277681,1.744515,143.31,143.27,56.9798]
[1728137277882,6.9779,143.31,143.27,56.9798]
[1728137278379,6.9779,143.31,143.27,50.0]
[1728137281706,6.9779,143.31,143.26,56.9802]
[1728137282793,6.9779,143.31,143.27,50.0]
[1728137285609,1.74461721,143.3,143.27,50.0]
[1728137285779,8.72301721,143.3,143.27,50.0]
[1728137285979,6.9784,143.3,143.26,50.0]
[1728137286982,6.9784,143.3,143.25,74.432]
[1728137287183,1.74472546,143.29,143.25,50.0]
[1728137287383,6.9799,143.27,143.22,74.4367]
[1728137288191,6.9799,143.27,143.23,50.0]
[1728137289097,6.9799,143.27,143.22,74.4367]
[1728137289308,1.74508942,143.3,143.22,74.4367]
[1728137289621,6.9804,143.26,143.22,74.4367]
[1728137292321,6.1069,143.29,143.22,80.60262772]
[1728137292528,16.95479651,143.31,143.26,50.0]
[1728137292697,22.1876,143.31,143.26,70.12752772]
[1728137293916,1.74467655,143.3,143.26,50.0]
[1728137294216,6.9794,143.28,143.24,67.4526]
[1728137294414,1.74467655,143.3,143.24,67.4526]
[1728137294620,6.9788,143.29,143.25,50.0]
[1728137294998,15.2098,143.31,143.25,50.0]
[1728137294999,6.9794,143.28,143.25,50.0]
[1728137295698,6.9794,143.28,143.24,74.4338]
[1728137297024,6.9798,143.27,143.24,67.4526]
[1728137297697,6.9798,143.27,143.23,56.9817]
[1728137297906,6.9798,143.27,143.23,50.0]
[1728137298413,6.9803,143.26,143.23,50.0]
[1728137298792,6.9803,143.26,143.22,56.9821]
[1728137298995,6.9803,143.26,143.22,50.0]
[1728137299425,6.9809,143.25,143.22,50.0]
[1728137300133,6.9809,143.25,143.21,67.4564]
[1728137306733,1.74532785,143.28,143.21,67.4564]
[1728137306940,1.74532785,143.28,143.21,50.0]
[1728137306941,6.9813,143.24,143.21,50.0]
[1728137307245,6.9818,143.23,143.19,56.9837]
[1728137307544,6.9818,143.23,143.19,50.0]
[1728137308042,19.19740872,143.26,143.19,50.0]
[1728137308222,6.9823,143.22,143.19,50.0]
[1728137308616,6.9823,143.22,143.18,50.0]
[1728137309325,6.9823,143.22,143.18,56.9841]
[1728137309640,6.9823,143.22,143.19,50.0]
[1728137310942,6.9823,143.22,143.18,50.0]
[1728137313541,6.9823,143.22,143.18,56.9841]
[1728137313750,6.9818,143.23,143.18,70.13172772]
[1728137313958,6.9818,143.23,143.19,50.0]
[1728137316135,1.7456036,143.22,143.18,50.0]
[1728137316478,6.9827,143.22,143.18,50.0]
[1728137317253,6.9827,143.22,143.17,87.59322772]
[1728137318364,6.9827,143.22,143.18,50.0]
[1728137319445,6.9827,143.22,143.17,74.4456]
[1728137320356,1.74569049,143.24,143.17,50.0]
[1728137320557,6.9834,143.2,143.17,50.0]
[1728137321457,6.9828,143.21,143.16,56.985]
[1728137322554,6.9833,143.2,143.16,56.985]
[1728137323264,1.74585576,143.22,143.14,67.4648]
[1728137323265,6.9837,143.19,143.14,67.4648]
[1728137323444,6.9837,143.19,143.14,74.4508]
[1728137323643,8.73043599,143.18,143.14,17.4648]
[1728137323843,6.9843,143.18,143.14,17.4648]
[1728137324669,6.9843,143.18,143.14,74.4509]
[1728137324877,1.74615491,143.2,143.14,74.4509]
[1728137325171,6.9837,143.19,143.14,87.59852772]
[1728137325766,6.9837,143.19,143.15,50.0]
[1728137331152,6.9837,143.19,143.14,74.4509]
[1728137333191,1.74600486,143.2,143.15,56.9854]
[1728137333382,6.9839,143.19,143.15,56.9854]
[1728137334079,6.9839,143.19,143.15,50.0]
[1728137336384,1.74601691,143.18,143.14,17.4648]
[1728137336563,6.9846,143.18,143.14,17.4648]
[1728137339990,1.74625782,143.2,143.14,17.4648]
[1728137340168,6.9847,143.17,143.14,17.4648]
[1728137340714,1.74625782,143.2,143.08,31.29150671]
[1728137340986,6.9847,143.17,143.13,50.0]
[1728137342794,12.9836,143.21,143.16,6.9851]
[1728137342970,12.9836,143.21,143.16,56.9851]
[1728137343179,6.9836,143.2,143.16,50.0]
[1728137344473,6.0005,143.21,143.16,50.0]
[1728137344674,6.0005,143.21,143.14,17.4643]
[1728137344675,15.7281,143.23,143.18,63.14762772]
[1728137344987,6.3224,143.24,143.2,50.0]
[1728137344988,13.3038,143.24,143.2,50.0]
[1728137345182,13.3038,143.24,143.19,70.13092772]
[1728137345578,6.3224,143.24,143.2,6.9831]
[1728137345897,25.11541634,143.27,143.21,56.9825]
[1728137346201,6.9803,143.26,143.21,70.13012772]
[1728137346686,8.72593413,143.25,143.21,50.0]
[1728137347197,6.9808,143.25,143.21,50.0]
[1728137348388,16.3894,143.27,143.22,74.4369]
[1728137348389,23.3696,143.27,143.22,74.4369]
[1728137348700,6.981,143.25,143.2,50.0]
[1728137351182,6.9813,143.24,143.2,50.0]
[1728137352503,1.74527877,143.26,143.19,50.0]
[1728137352813,6.9826,143.22,143.19,50.0]
[1728137353095,1.74527877,143.26,143.17,78.46762772]
[1728137353303,6.9823,143.22,143.17,85.45212772]
[1728137353682,6.9823,143.22,143.18,50.0]
[1728137354201,1.74527877,143.26,143.18,50.0]
[1728137354405,6.9824,143.22,143.18,50.0]
[1728137355723,6.9824,143.22,143.19,50.0]
[1728137356309,1.74560013,143.26,143.19,50.0]
[1728137356310,6.9818,143.23,143.19,50.0]
[1728137356988,1.74560013,143.26,143.17,56.9846]
[1728137358204,6.9836,143.2,143.17,50.0]
[1728137358391,6.9828,143.21,143.17,50.0]
[1728137358709,6.9826,143.22,143.17,56.9845]
[1728137359006,6.9826,143.22,143.17,6.9845]
[1728137359404,6.9827,143.21,143.17,6.9845]
[1728137361209,6.9827,143.21,143.17,56.9845]
[1728137362309,6.9827,143.21,143.17,6.9845]
[1728137362715,1.7457355,143.2,143.14,50.0]
[1728137362889,6.9842,143.18,143.14,50.0]
[1728137363416,6.9842,143.18,143.13,74.4525]
[1728137365110,6.9852,143.16,143.11,70.13472772]
[1728137365284,6.9847,143.17,143.13,50.0]
[1728137366197,6.9847,143.17,143.13,56.9865]
[1728137366385,1.74632655,143.2,143.13,70.13412772]
[1728137366707,6.9842,143.18,143.14,56.9861]
[1728137367498,1.74632655,143.2,143.14,63.14762772]
[1728137367696,6.9833,143.2,143.15,56.9856]
[1728137367995,6.9833,143.2,143.15,70.13322772]
[1728137368515,6.9833,143.2,143.15,56.9856]
[1728137371117,6.3224,143.23,143.17,50.0]
[1728137371410,6.9822,143.22,143.17,56.9846]
[1728137371615,8.72791469,143.22,143.17,56.9846]
[1728137372196,6.9822,143.22,143.17,56.9846]
[1728137373219,6.9828,143.21,143.17,56.9846]
[1728137374817,6.9833,143.2,143.16,30.60982772]
[1728137375104,6.9833,143.2,143.16,17.4622]
[1728137378624,8.06811947,143.23,143.15,56.9852]
[1728137378814,23.902374,143.22,143.15,50.0]
[1728137379131,6.9842,143.18,143.15,50.0]
[1728137379504,6.9842,143.18,143.14,56.9861]
[1728137379705,6.985,143.17,143.13,17.466]
[1728137381430,6.985,143.17,143.13,24.4526]
[1728137382340,6.9854,143.16,143.12,50.0]
[1728137382538,6.9854,143.16,143.11,56.9875]
[1728137387442,1.74632846,143.17,143.11,56.9875]
[1728137387616,6.9858,143.15,143.11,56.9875]
[1728137388942,6.9858,143.15,143.11,6.9875]
[1728137390146,6.9858,143.15,143.11,56.9875]
[1728137391146,6.9858,143.15,143.11,6.9875]
[1728137392246,6.9858,143.15,143.11,56.9875]
[1728137394329,6.9858,143.15,143.1,87.60552772]
[1728137395346,6.9858,143.15,143.1,37.60552772]
[1728137395550,6.9862,143.14,143.1,24.4579]
[1728137396932,6.9862,143.14,143.1,17.4698]
[1728137397446,23.776884,143.16,143.09,70.13612772]
[1728137397648,6.9867,143.13,143.08,70.13652772]
[1728137397955,6.9867,143.13,143.09,6.9885]
[1728137398329,6.9867,143.13,143.08,56.989]
[1728137398633,6.9872,143.12,143.07,67.4732]
[1728137398831,8.73400189,143.12,143.07,87.61022772]
[1728137399037,6.9872,143.12,143.07,87.61022772]
[1728137399239,6.9872,143.12,143.08,6.9889]
[1728137399835,6.9872,143.12,143.08,56.9889]
[1728137401031,6.9867,143.13,143.09,20.13612772]
[1728137402632,17.6115434,143.15,143.09,20.13612772]
[1728137402836,6.9862,143.14,143.1,6.988]
[1728137403446,6.9862,143.14,143.1,6.488]
[1728137404055,6.9862,143.14,143.09,56.9884]
[1728137404769,17.6115434,143.15,143.09,56.9884]
[1728137404931,6.9868,143.13,143.09,56.9884]
[1728137405131,6.9868,143.13,143.09,6.9884]
[1728137405556,15.8648,143.15,143.1,56.988]
[1728137405738,15.8648,143.15,143.12,50.0]
[1728137405932,17.94704532,143.2,143.16,6.9851]
[1728137406139,17.94704532,143.2,143.15,37.59672772]
[1728137406140,6.9838,143.19,143.15,37.59672772]
[1728137406750,6.9838,143.19,143.15,17.4635]
[1728137408356,6.9856,143.16,143.12,17.4675]
[1728137408939,1.74606031,143.18,143.11,56.9872]
[1728137409143,6.9857,143.15,143.11,6.9872]
[1728137410547,6.9857,143.15,143.1,56.988]
[1728137411239,6.9863,143.14,143.1,56.988]
[1728137411740,1.74662941,143.16,143.1,56.988]
[1728137411741,6.9857,143.15,143.1,56.988]
[1728137412160,6.9852,143.16,143.11,6.9876]
[1728137412340,6.9852,143.16,143.11,56.9876]
[1728137412737,6.9852,143.16,143.11,50.0]
[1728137412966,6.9843,143.18,143.14,6.9861]
[1728137413141,16.2005,143.2,143.14,6.9861]
[1728137413346,17.94660152,143.2,143.14,6.9861]
[1728137413545,17.94660152,143.2,143.14,56.9861]
[1728137414157,6.9838,143.19,143.14,56.9861]
[1728137415551,6.9838,143.19,143.15,50.0]
[1728137415974,24.92990152,143.2,143.15,56.9856]
[1728137418065,6.9838,143.19,143.15,56.9856]
[1728137418672,6.9838,143.19,143.15,50.0]
[1728137418981,6.9838,143.19,143.14,56.9861]
[1728137422076,6.9838,143.19,143.15,50.0]
[1728137425070,6.9852,143.16,143.13,50.0]
[1728137425274,6.9852,143.16,143.11,16.2986]
[1728137425275,17.94660152,143.2,143.11,50.0]
[1728137425476,6.986,143.15,143.11,50.0]
[1728137426592,6.9867,143.13,143.08,56.989]
[1728137427288,6.9872,143.12,143.08,50.0]
[1728137427584,6.9881,143.1,143.06,50.0]
[1728137428190,8.73434067,143.12,143.06,56.99]
[1728137428972,1.74684067,143.12,143.06,56.99]
[1728137429174,6.9877,143.11,143.06,56.99]
[1728137430395,23.902374,143.13,143.06,56.99]
[1728137430560,6.9881,143.1,143.06,6.99]
[1728137431263,6.9881,143.1,143.05,70.13802772]
[1728137431683,6.9881,143.1,143.05,56.9904]
[1728137432383,6.9895,143.08,143.05,50.0]
[1728137432693,6.9886,143.09,143.04,87.61572772]
[1728137432984,6.4497,143.11,143.04,74.4681]
[1728137433194,6.9891,143.08,143.04,74.4681]
[1728137433688,8.73639922,143.08,143.04,24.4681]
[1728137434192,6.9891,143.08,143.04,24.4681]
[1728137434381,23.2468,143.09,143.04,24.4681]
[1728137434573,23.2468,143.09,143.02,0.8563334]
[1728137434574,1.74727456,143.08,143.02,0.8563334]
[1728137434996,6.9915,143.03,143.02,0.8563334]
[1728137436585,23.2496,143.03,143.02,0.8563334]
[1728137437197,47.026484,143.03,143.02,0.8563334]
[1728137437892,23.2496,143.03,143.02,0.8563334]
[1728137439390,16.2581,143.03,143.02,0.8563334]
[1728137439701,6.9911,143.04,143.02,0.8563334]
[1728137439993,8.73905879,143.04,143.02,0.8563334]
[1728137440198,6.9915,143.03,143.02,0.8563334]
[1728137442484,31.019364,143.03,143.02,0.8563334]
[1728137444183,30.768384,143.03,143.02,0.8563334]
[1728137445490,30.893874,143.03,143.02,0.8563334]
[1728137446297,31.019364,143.03,143.02,0.8563334]
[1728137450680,30.768384,143.03,143.02,0.8563334]
[1728137453600,30.893874,143.03,143.02,0.8563334]
[1728137453804,31.019364,143.03,143.02,0.8563334]
[1728137458100,6.9915,143.03,143.02,0.8563334]
[1728137459389,30.893874,143.03,143.02,0.8563334]
[1728137462714,31.019364,143.03,143.02,0.8563334]
[1728137466210,30.893874,143.03,143.02,0.8563334]
[1728137466431,6.9915,143.03,143.02,0.8563334]
[1728137467914,30.893874,143.03,143.02,0.8563334]
[1728137468529,31.019364,143.03,143.02,0.8563334]
[1728137473411,51.019364,143.03,143.02,0.8563334]
[1728137477237,26.9915,143.03,143.02,0.8563334]
[1728137477407,28.73976957,143.03,143.02,0.8563334]
[1728137478432,26.9915,143.03,143.02,0.8563334]
[1728137478818,50.768384,143.03,143.02,0.8563334]
[1728137479132,51.019364,143.03,143.02,0.8563334]
[1728137480935,50.768384,143.03,143.02,0.8563334]
[1728137491136,51.019364,143.03,143.02,0.8563334]
[1728137497935,51.019364,143.03,143.02,3.34e-05]
[1728137504054,26.9915,143.03,143.02,3.34e-05]
[1728137504848,17.4817,143.01,142.94,15.1726]
[1728137505056,6.9941,142.98,142.94,22.1685]
[1728137505459,6.9941,142.98,142.94,72.1685]
[1728137505749,6.9935,142.99,142.94,72.1685]
[1728137508755,1.74848195,143.0,142.94,22.1685]
[1728137509052,6.9941,142.98,142.94,22.1685]
[1728137510964,6.9941,142.98,142.94,72.1685]
[1728137514554,6.9941,142.98,142.94,65.1726]
[1728137514938,6.9941,142.98,142.94,72.1684]
[1728137517643,6.9941,142.98,142.94,78.1751]
[1728137520454,6.9941,142.98,142.95,50.0]
[1728137520964,6.9936,142.99,142.95,50.0]
[1728137521137,1.74841044,143.03,142.98,50.0]
[1728137521336,1.74803812,143.05,142.99,56.0067]
[1728137521840,6.9916,143.03,142.99,56.0067]
[1728137522154,1.74803812,143.05,142.99,6.0067]
[1728137522541,6.993,143.0,142.99,6.0067]
[1728137522736,6.993,143.0,142.98,15.1726]
[1728137523355,6.9934,142.99,142.98,15.1726]
[1728137524056,16.63604413,142.99,142.98,15.1726]
[1728137526743,16.89293751,142.99,142.98,15.1726]
[1728137528372,23.88633751,142.99,142.98,15.1726]
[1728137528756,16.89293751,142.99,142.98,15.1726]
[1728137529962,6.993,143.0,142.98,15.1726]
[1728137530138,16.68525792,142.99,142.98,15.1726]
[1728137530458,23.10268347,142.99,142.98,15.1726]
[1728137530757,16.68527658,142.99,142.98,15.1726]
[1728137533363,6.993,143.0,142.98,15.1726]
[1728137533560,16.68267692,142.99,142.98,15.1726]
[1728137533867,6.41621868,142.99,142.98,15.1726]
[1728137534463,16.68216856,142.99,142.98,15.1726]
[1728137536040,16.68216856,142.99,142.98,22.1665]
[1728137536457,16.68216856,142.99,142.98,72.1665]
[1728137536767,16.68216856,142.99,142.98,109.34199172]
[1728137537065,6.9906,143.05,143.01,50.0]
[1728137537267,16.68394686,143.04,143.01,50.0]
[1728137537454,10.26704422,143.03,143.02,50.0]
[1728137537772,10.26704422,143.03,143.02,66.199]
[1728137538371,16.68394686,143.03,143.02,66.199]
[1728137538960,16.68394686,143.03,143.02,16.199]
[1728137539267,6.41690264,143.03,143.02,16.199]
[1728137540552,6.991,143.04,143.02,16.199]
[1728137541072,6.190634,143.03,143.02,16.199]
[1728137543072,7.93842642,143.03,142.97,16.199]
[1728137543390,6.9939,142.99,142.94,73.1947]
[1728137543851,6.9939,142.99,142.95,50.0]
[1728137544751,6.10803233,142.98,142.95,50.0]
[1728137545263,6.9939,142.99,142.95,50.0]
[1728137545456,6.10844353,142.98,142.95,50.0]
[1728137545771,6.10844353,142.97,142.95,50.0]
[1728137545972,6.994,142.98,142.94,73.1947]
[1728137546276,6.10818946,142.97,142.94,73.1947]
[1728137546474,6.994,142.98,142.94,73.1947]
[1728137546668,6.10859301,142.97,142.94,73.1947]
[1728137546865,6.994,142.98,142.94,73.1947]
[1728137547069,6.10919748,142.97,142.95,50.0]
[1728137547587,6.994,142.98,142.95,50.0]
[1728137547886,6.11023298,142.97,142.95,50.0]
[1728137548180,6.994,142.98,142.94,23.1947]
[1728137548388,6.11021178,142.97,142.94,23.1947]
[1728137548570,6.994,142.98,142.94,23.1947]
[1728137548775,6.11017748,142.97,142.94,23.1947]
[1728137548971,6.994,142.98,142.94,23.1947]
[1728137549283,6.11034443,142.97,142.94,73.1947]
[1728137549485,6.994,142.98,142.94,73.1947]
[1728137549677,6.1106378,142.97,142.94,73.1947]
[1728137549859,6.994,142.98,142.94,73.1947]
[1728137550183,6.11058648,142.97,142.94,66.199]
[1728137550381,6.994,142.98,142.94,16.199]
[1728137550959,6.11076753,142.97,142.94,16.199]
[1728137551159,6.994,142.98,142.94,16.199]
[1728137551367,6.11078527,142.97,142.94,16.199]
[1728137551568,6.11063854,142.96,142.94,16.199]
[1728137551781,6.9948,142.97,142.94,16.199]
[1728137551963,6.10998154,142.96,142.94,16.199]
[1728137552162,6.9948,142.97,142.94,16.199]
[1728137552360,6.10967199,142.96,142.94,16.199]
[1728137552561,6.9948,142.97,142.94,16.199]
[1728137552878,6.9954,142.95,142.92,56.4009]
[1728137553088,6.9954,142.95,142.92,50.0]
[1728137553383,6.995,142.96,142.92,50.0]
[1728137553786,6.10804605,142.95,142.92,50.0]
[1728137553985,6.995,142.96,142.92,50.0]
[1728137554183,6.9963,142.94,142.92,50.0]
[1728137554367,13.10339892,142.95,142.92,50.0]
[1728137554781,6.9955,142.95,142.92,50.0]
[1728137555088,6.995,142.96,142.92,50.0]
[1728137555287,6.10753452,142.95,142.92,50.0]
[1728137555484,6.995,142.96,142.92,50.0]
[1728137555679,6.10697242,142.95,142.92,50.0]
[1728137555882,6.995,142.96,142.93,50.0]
[1728137556070,6.1069764,142.95,142.93,50.0]
[1728137556391,6.9946,142.97,142.93,50.0]
[1728137556592,6.10619775,142.96,142.93,50.0]
[1728137556794,6.10619775,142.95,142.93,50.0]
[1728137556967,6.994,142.98,142.95,50.0]
[1728137557165,1.7486197,143.01,142.95,50.0]
[1728137557166,6.10647695,142.97,142.95,50.0]
[1728137557481,22.9821,143.02,142.95,50.0]
[1728137557482,6.9921,143.02,142.97,56.9943]
[1728137557880,6.10782155,143.01,142.97,56.9943]
[1728137558090,6.10782155,143.0,142.97,56.9943]
[1728137558267,6.10782155,142.99,142.97,56.9943]
[1728137558462,6.10782155,142.98,142.97,56.9943]
[1728137559201,6.10782155,142.98,142.97,6.9943]
[1728137559483,6.10782155,142.98,142.96,74.4816]
[1728137559692,6.993,143.0,142.96,74.4816]
[1728137559896,6.1082993,142.99,142.98,50.0]
[1728137560095,6.9926,143.01,142.98,50.0]
[1728137560294,6.10842425,143.0,142.98,50.0]
[1728137560990,6.10842425,142.99,142.98,50.0]
[1728137561197,6.10842425,142.99,142.97,50.0]
[1728137561399,6.9926,143.01,142.97,50.0]
[1728137561691,6.10915979,143.0,142.97,50.0]
[1728137561874,6.10915979,142.99,142.97,50.0]
[1728137562074,6.9926,143.01,142.97,56.9943]
[1728137562289,6.10960056,143.0,142.98,50.0]
[1728137562489,6.9926,143.01,142.98,50.0]
[1728137562675,6.10986501,143.0,142.98,50.0]
[1728137562876,6.9926,143.01,142.98,50.0]
[1728137563076,6.10986501,143.0,142.98,50.0]